Cogmind - Beta 10.2 --- EXPLORER MODE // 2021.11.07 @ 21:46:04 Player: badmuff Result: Core destroyed Performance ------------- Evolutions (1) 500 Regions Visited (4) 800 Robots Destroyed (32) 160 Value Destroyed (898) 898 Prototype IDs (1) 20 Alien Tech Used (0) 0 Bonus (0) 0 TOTAL SCORE: 2378 Bonus ------- None Cogmind --------- Core Integrity 0/400 Matter 155/300 Energy 404/460 System Corruption 0% Temperature Cool (514) Movement Walking (150) Ox1 Location -9/Mines Parts ------- > --- POWER (2) -------- Heavy Ion Engine Heavy Ion Engine > --- PROPULSION (3) --- Aluminum Leg Aluminum Leg > --- UTILITY (3) ------ Sensor Array Targeting Computer Medium Armor Plating > --- WEAPON (2) ------- Particle Gun > --- INVENTORY (4) ---- Heavy Ion Engine Heavy Ion Engine Peak State ------------ > --- POWER ------------ Heavy Ion Engine Light Nuclear Core > --- PROPULSION ------- Aluminum Leg Aluminum Leg > --- UTILITY ---------- Sensor Array Targeting Computer Medium Armor Plating > --- WEAPON ----------- Particle Cannon Heavy Hammer > --- INVENTORY -------- Ion Engine Beam Rifle [Rating: 16] Favorites ----------- Power Ion Engine Engine Ion Engine Power Core Light Nuclear Core Propulsion Aluminum Leg Leg Aluminum Leg Utility Targeting Computer Device Heat Sink Storage Medium Matter Pod Processor Targeting Computer Protection Medium Armor Plating Weapon Particle Gun Energy Gun Particle Gun Energy Cannon Particle Cannon Ballistic Gun Assault Rifle Special Weapon Mining Laser Impact Weapon Heavy Hammer Build | -11 -10 -10 -9 -9 ------- Run | Scr Mat Min Mat Min Slots Evolved 3 | . 1 . 2 . Power 1 | . . . 1 . Propulsion 1 | . . . 1 . Utility 1 | . 1 . . . Weapon . | . . . . . Parts Attached 33 | 8 9 4 11 1 Power 7 | 1 1 1 4 . Engine 6 | 1 1 1 3 . Core 1 | . . . 1 . Reactor . | . . . . . Propulsion 5 | 2 . 2 1 . Treads . | . . . . . Leg 5 | 2 . 2 1 . Wheel . | . . . . . Hover . | . . . . . Flight . | . . . . . Utility 7 | 2 2 1 2 . Device 2 | . 1 . 1 . Storage 1 | . 1 . . . Processor 2 | 1 . 1 . . Hackware . | . . . . . Protection 2 | 1 . . 1 . Artifact . | . . . . . Weapon 14 | 3 6 . 4 1 Energy Gun 5 | . 2 . 2 1 Energy Cannon 1 | . . . 1 . Ballistic Gun 5 | 3 2 . . . Ballistic Cannon . | . . . . . Launcher . | . . . . . Special Weapon 2 | . 2 . . . Impact Weapon 1 | . . . 1 . Slashing Weapon . | . . . . . Piercing Weapon . | . . . . . Special Melee Weapon . | . . . . . Unidentified Prototypes 1 | . . . 1 . Parts Lost 2 | . . . 1 1 Power . | . . . . . Propulsion . | . . . . . Utility . | . . . . . Weapon 2 | . . . 1 1 Highest Loss Streak 1 | . . . 1 1 Average Slot Usage (%) 78 | . 74 77 86 89 Engine 12 | . 12 11 13 20 Core 1 | . . . 5 . Leg 11 | . 10 3 20 20 Device 10 | . 11 10 6 10 Storage 3 | . . 12 4 . Processor 12 | . 12 13 13 10 Protection 2 | . 1 . 5 10 Energy Gun 9 | . 9 12 4 9 Energy Cannon 2 | . . . 6 9 Ballistic Gun 6 | . 13 . . . Special Weapon 3 | . 1 12 . . Impact Weapon 1 | . . . 6 . Naked Turns . | . . . . . Heaviest Build 31 | 12 13 12 31 31 Greatest Support 20 | 20 20 20 20 20 Greatest Overweight (x) 3 | 3 3 3 1 1 Average Overweight (x) 1 | . 1 2 . 1 Largest Inventory Capacity 4 | 4 4 4 4 4 Average Capacity 4 | 4 4 4 4 4 Most Carried 4 | 2 3 3 4 4 Average Carried 1 | . 1 . 1 2 Final Capacity 4 | 4 4 4 4 4 Final Carried 3 | . 1 . 3 2 Class Distribution -------------------- 89% | Hacker-Mutant 10% | Scavenger-Mutant Dominant Class ---------------- Hacker-Mutant | -10/Materials Hacker-Mutant | -10/Mines Scavenger-Mutant | -9/Materials Hacker-Mutant | -9/Mines Resources | -11 -10 -10 -9 -9 ----------- Run | Scr Mat Min Mat Min Matter Collected 691 | 224 187 129 141 10 Remotely . | . . . . . Salvage Created 1055 | . 269 172 471 143 Parts 66 | . 28 6 22 10 Haulers Intercepted 1 | . . . 1 . Recyclers Shooed . | . . . . . Parts Field Recycled . | . . . . . Retrieved Matter . | . . . . . Parts Self-Destructed . | . . . . . Prevented . | . . . . . Kills | -11 -10 -10 -9 -9 ------- Run | Scr Mat Min Mat Min Combat Hostiles Destroyed 25 | . 6 4 8 7 Guns 18 | . 6 4 4 4 Cannons 7 | . . . 4 3 Classes Destroyed 6 | . 4 . 2 . Worker 1 | . 1 . . . Hauler 1 | . . . 1 . Watcher 5 | . 3 . 2 . Swarmer 7 | . 2 . . 5 Grunt 16 | . 4 4 6 2 Sentry 2 | . . . 2 . Best Kill Streak 6 | . 6 2 4 2 Combat Bots Only 4 | . 4 2 3 2 Max Kills in Single Turn 1 | . 1 1 1 1 Gunslinging . | . . . . . Exploded . | . . . . . Melee . | . . . . . Uniques/NPCs Destroyed . | . . . . . Combat | -11 -10 -10 -9 -9 -------- Run | Scr Mat Min Mat Min Damage Taken 959 | . 149 135 357 318 Core 459 | . 9 35 229 186 Absorbed by Shields . | . . . . . Core Remaining (%) 91 | 100 . 82 . . Volleys Fired 93 | . 21 17 36 19 Largest 2 | . 2 2 2 2 Hottest 165 | . 85 165 121 133 Shots Fired 130 | . 42 18 42 28 Gun 97 | . 42 17 27 11 Cannon 32 | . . . 15 17 Launcher . | . . . . . Special 1 | . . 1 . . Kinetic 27 | . 27 . . . Thermal 103 | . 15 18 42 28 Explosive . | . . . . . Electromagnetic . | . . . . . Robot Hit Streak 31 | . 31 12 20 13 Robot Miss Streak 2 | . 1 1 1 2 Penetration Max . | . . . . . Secondary Targets . | . . . . . Shots Hit Robots 101 | . 37 15 33 16 Core Hits 44 | . 14 7 15 8 Critical Hits . | . . . . . Critical Kills . | . . . . . Critical Parts Destroyed . | . . . . . Melee Attacks . | . . . . . Impact . | . . . . . Slashing . | . . . . . Piercing . | . . . . . Sneak Attacks . | . . . . . Combat Hostiles . | . . . . . Follow-up Attacks . | . . . . . Damage Inflicted 1511 | . 399 257 571 284 Guns 1104 | . 399 257 348 100 Cannons 407 | . . . 223 184 Explosions . | . . . . . Melee . | . . . . . Ramming . | . . . . . Kinetic 240 | . 240 . . . Thermal 1271 | . 159 257 571 284 Explosive . | . . . . . Electromagnetic . | . . . . . Impact . | . . . . . Slashing . | . . . . . Piercing . | . . . . . Highest Corruption . | . . . . . Average Corruption . | . . . . . Corruption Purged . | . . . . . Overload Shots . | . . . . . Overflow Damage 15 | . . . . 15 Projectiles 15 | . . . . 15 Explosions . | . . . . . Melee . | . . . . . Knockbacks . | . . . . . Impact . | . . . . . Kinetic . | . . . . . Secondary . | . . . . . Self-Inflicted Damage . | . . . . . Shots . | . . . . . Rammed . | . . . . . Targets Rammed . | . . . . . Kicked . | . . . . . Crushed . | . . . . . Highest Temperature 651 | . 25 110 584 651 Average Temperature 164 | . 15 42 165 247 Received Heat Transfer 384 | . 105 126 123 30 Effects 35 | . . . 17 18 Shutdowns 7 | . . . 3 4 Energy Bleed 2 | . . . 1 1 Interference 4 | . . . 4 . Matter Decay 4 | . . . . 4 Short Circuit 2 | . . . . 2 Damage (minor) 3 | . . . 1 2 Damage (major) 7 | . . . 5 2 Damage (core) 6 | . . . 3 3 Siege Activations . | . . . . . Robots Corrupted . | . . . . . Combat Hostiles . | . . . . . Parts Fried . | . . . . . Impact Corruptions . | . . . . . Robots Melted . | . . . . . Combat Hostiles . | . . . . . Parts Melted 4 | . 1 . 2 1 Heat Transferred 2812 | . 370 592 1258 592 Parts Sabotaged . | . . . . . Parts Stolen . | . . . . . Parts Stripped . | . . . . . Power Chain Reactions . | . . . . . Missiles Intercepted . | . . . . . Alert | -11 -10 -10 -9 -9 ------- Run | Scr Mat Min Mat Min Peak Influence 220 | . 127 50 217 220 Initial 15 | . . . 13 15 Average 56 | . 50 31 99 84 Maximum Alert Level 1 | . . . 1 1 Low Security (%) 98 | 100 100 100 91 98 Level 1 1 | . . . 8 1 Level 2 . | . . . . . Level 3 . | . . . . . Level 4 . | . . . . . Level 5 . | . . . . . High Security . | . . . . . Max Security . | . . . . . Squads Dispatched 2 | . . . 2 . Investigation . | . . . . . Extermination . | . . . . . Reinforcement 2 | . . . 2 . Assault . | . . . . . Garrison . | . . . . . Intercept . | . . . . . Construction Impeded . | . . . . . Haulers Reinforced . | . . . . . Stealth | -11 -10 -10 -9 -9 --------- Run | Scr Mat Min Mat Min Distress Signals 3 | . . . 3 . Communications Jammed . | . . . . . Distress Signals . | . . . . . Times Spotted 42 | . 11 4 16 11 Peak Tracking Total 4 | . 2 2 3 4 Tactical Retreats 2 | . . . 1 1 Traps | -11 -10 -10 -9 -9 ------- Run | Scr Mat Min Mat Min Traps Triggered 5 | . 4 . 1 . Indirectly . | . . . . . Trap Hack Attempts . | . . . . . Triggered . | . . . . . Disarmed . | . . . . . Reprogrammed . | . . . . . Reused . | . . . . . Traps Extracted . | . . . . . Installed . | . . . . . Triggered . | . . . . . Machines | -11 -10 -10 -9 -9 ---------- Run | Scr Mat Min Mat Min Machines Disabled 2 | . 2 . . . Max in Single Turn 1 | . 1 . . . Machines Sabotaged . | . . . . . Garrisons Compromised . | . . . . . Overloaded Fab Kills . | . . . . . Fab Network Shutdowns . | . . . . . Hacking | -11 -10 -10 -9 -9 --------- Run | Scr Mat Min Mat Min Machines Accessed 1 | . 1 . . . Terminals 1 | . 1 . . . Fabricators . | . . . . . Repair Stations . | . . . . . Recycling Units . | . . . . . Scanalyzers . | . . . . . Garrison Access . | . . . . . Total Hacks 2 | . 2 . . . Successful 2 | . 2 . . . Failed . | . . . . . Catastrophic . | . . . . . Database Lockouts . | . . . . . Manual . | . . . . . Terminals 2 | . 2 . . . Fabricators . | . . . . . Repair Stations . | . . . . . Recycling Units . | . . . . . Scanalyzers . | . . . . . Garrison Access . | . . . . . Terminal Hacks 2 | . 2 . . . Record 2 | . 2 . . . Fabricator Hacks . | . . . . . Repair Station Hacks . | . . . . . Recycling Unit Hacks . | . . . . . Scanalyzer . | . . . . . Garrison Access Hacks . | . . . . . Unauthorized Hacks . | . . . . . Terminals . | . . . . . Fabricators . | . . . . . Repair Stations . | . . . . . Recycling Units . | . . . . . Scanalyzers . | . . . . . Garrison Access . | . . . . . Data Cores Recovered . | . . . . . Used . | . . . . . Hacking Detections 1 | . 1 . . . Full Trace Events . | . . . . . Feedback Events . | . . . . . Feedback Blocked . | . . . . . Robot Schematics Acquired . | . . . . . Robots Built . | . . . . . Matter . | . . . . . Time . | . . . . . Total Robot Build Rating . | . . . . . Part Schematics Acquired . | . . . . . Parts Built . | . . . . . Matter . | . . . . . Time . | . . . . . Total Part Build Rating . | . . . . . Parts Repaired . | . . . . . Time . | . . . . . Parts Recycled . | . . . . . Recycled Matter . | . . . . . Retrieved Matter . | . . . . . Retrieved Components . | . . . . . Parts Scanalyzed . | . . . . . Part Schematics Acquired . | . . . . . Parts Damaged . | . . . . . Bothacking | -11 -10 -10 -9 -9 ------------ Run | Scr Mat Min Mat Min Used RIF Installer . | . . . . . Robots Hacked . | . . . . . Non-combat . | . . . . . Combat . | . . . . . Robot Hacks Applied . | . . . . . Relay Couplers Released . | . . . . . Robots Rewired . | . . . . . Allies Hacked . | . . . . . Hacks Repelled . | . . . . . Allies | -11 -10 -10 -9 -9 -------- Run | Scr Mat Min Mat Min Total Allies . | . . . . . Largest Group . | . . . . . Highest-Rated Group . | . . . . . Highest-Rated Ally . | . . . . . Total Orders . | . . . . . Ally Attacks . | . . . . . Total Damage . | . . . . . Kills . | . . . . . Allies Corrupted . | . . . . . Allies Melted . | . . . . . Intel | -11 -10 -10 -9 -9 ------- Run | Scr Mat Min Mat Min Robot Analysis Total . | . . . . . Derelict Logs Recovered . | . . . . . Drone Launches . | . . . . . Drone Recoveries . | . . . . . Exploration | -11 -10 -10 -9 -9 ------------- Run | Scr Mat Min Mat Min Turns Passed 2774 | 86 1255 655 525 253 Spaces Moved 1579 | 57 746 334 306 136 Core 650 | 25 364 261 . . Treads . | . . . . . Legs 929 | 32 382 73 306 136 Wheels . | . . . . . Hover . | . . . . . Flight . | . . . . . Fastest Speed 50 | 50 50 120 120 150 Average Speed 156 | 118 157 182 135 150 Slowest Speed 200 | 200 200 200 150 150 Overloaded Moves . | . . . . . Propulsion Burnouts . | . . . . . Robots Hopped . | . . . . . Cave-ins Triggered . | . . . . . Exploration Rate (%) 41 | 4 73 63 31 35 Regions Visited 4 Branch Regions 2 Pre-discovered Areas . | . . . . . Known Exits Taken 4 | 1 1 1 1 . Unknown Exits Taken . | . . . . . Scrap Searched . | . . . . . Spaces Dug . | . . . . . Terrain Destroyed 1 | . . 1 . . Melee . | . . . . . Projectile 1 | . . 1 . . AOE . | . . . . . Terrain Rammed . | . . . . . Walls Destroyed . | . . . . . Machines Disabled . | . . . . . Actions | -11 -10 -10 -9 -9 --------- Run | Scr Mat Min Mat Min Total 1768 | 76 789 361 383 159 Wait . | . . . . . Move 1575 | 56 745 333 305 136 Hop . | . . . . . Pick Up 37 | 9 10 3 14 1 Fast Attach . | . . . . . Attach 33 | 8 9 4 11 1 Detach 14 | 1 2 2 9 . Swap . | . . . . . Drop 16 | 2 2 2 8 2 Fire 93 | . 21 17 36 19 Melee . | . . . . . Ram . | . . . . . Kick . | . . . . . Crush . | . . . . . Escape Stasis . | . . . . . Rewire . | . . . . . Trap . | . . . . . Miscellaneous . | . . . . . Route ------- -11/Scrapyard -10/Materials (discovered 4 exits: *Mat x2 / *Min x2) -10/Mines (discovered 3 exits: *Mat x2 / *Exi) -9/Materials (discovered 2 exits: *Mat / *Min) -9/Mines (discovered 1 exit: *Mat) History --------- Turn | Location | Event 21 | -11/Scrapyard | Identified exit to Materials 21 | -11/Scrapyard | Discovered exit to Materials (range 16) 87 | -11/Scrapyard | Entered Materials 87 | -10/Materials | Evolved 1 slot: Utility x1 261 | -10/Materials | Identified exit to Mines 261 | -10/Materials | Discovered exit to Mines (range 11) 318 | -10/Materials | Build established: Hacker-Mutant 351 | -10/Materials | Identified exit to Materials 351 | -10/Materials | Discovered exit to Materials (range 16) 619 | -10/Materials | Discovered exit to Mines (range 8) 1055 | -10/Materials | Discovered exit to Materials (range 16) 1342 | -10/Materials | Entered Mines 1396 | -10/Mines | Deemed a non-threat by the Exiles lab entrance 1396 | -10/Mines | Identified exit to Exiles 1396 | -10/Mines | Discovered exit to Exiles (range 5) 1885 | -10/Mines | Discovered exit to Materials (range 8) 1936 | -10/Mines | Discovered exit to Materials (range 9) 1997 | -10/Mines | Entered Materials 1997 | -9/Materials | Evolved 2 slots: Power x1, Propulsion x1 2153 | -9/Materials | Core integrity fell below 50% 2341 | -9/Materials | Build established: Scavenger-Mutant 2398 | -9/Materials | Identified exit to Materials 2398 | -9/Materials | Discovered exit to Materials (range 5) 2497 | -9/Materials | Identified exit to Mines 2497 | -9/Materials | Discovered exit to Mines (range 8) 2522 | -9/Materials | Entered Mines 2522 | -9/Mines | Discovered exit to Materials (range 10) 2642 | -9/Mines | Build established: Hacker-Mutant 2775 | -9/Mines | Core integrity fell below 20% 2776 | -9/Mines | Core destroyed Last Messages --------------- 02760_ Overheating: Particle Cannon damaged (-32). 02760_ Overheating: Med. Armor Plating damaged (-41). 02761_ Overheating: Particle Cannon damaged (-7). 02762_ Particle Cannon permanently disabled. 02762_ Overheating: Short circuit. 02762_ U-05 Engineer lays Concrete. 02763_ Overheating: Matter decay (-37). 02763_ Critical hit. 02763_ Broken Particle Cannon destroyed. 02766_ Power failure, Hvy. Ion Engine shutdown. 02766_ Overheating: Energy bleed (-96). 02768_ Targeting Computer permanently disabled. 02768_ Overheating: Short circuit. 02769_ Power failure, Hvy. Ion Engine shutdown. 02771_ Overheating: Core damaged (-40). 02771_ Flight Unit melted. 02771_ S-10 Pest destroyed. 02773_ Overheating: Broken Targeting Computer damaged (-2). 02775_ Overheating: Core damaged (-72). 02776_ Overheating: Core damaged (-68). Map ----- +----------------------------------------------------+ | ???????????????????????????????????????? | | ???????????????????????????????????????? | | ???????????????????????????????????????? | | ???????????????????????????????????????? | | ???????????????????????????????????????? | | ???????????????????????????????????????? | | ???????????????????????????????????????? | | ???????????????????????????????????????? | | ???????????????????????????????????????? | | ???????????????????????????????????????? | | ??????????????????? ????????????????? | | ????????????????? ????????????????? | | ????????????????? ????????????????? | | ?????????????????? ????????????????? | | ?????????????????? ????????????????? | | ?????????????????? ????????????????? | | ?????????????????? ????????????????? | | ??????????????????? ????????????????? | | ??????????????????? %= ????????????????? | | ??#######?????????? ????????????????? | | ?## ##?????????#[%=????????????????? | | ?# #?????????#$ #????????????????? | | ?# ##????# ### ????????????????? | | ?? ###???? #??????#?????????? | | ?????# ##????## ###### #?????????? | | ?????## #????# s@ #?????????? | | ??????## #???# ## ####?????????? | | ??????## ##???# ## #????????????? | | ??##### ##????# ### #????????????? | | ### ##????# #### #????????????? | | ###??# ## #????????????? | | ##?###?# ####????????????? | | #?????# #???????????????? | | ### =%####### #???????????????? | | ####?## %[ #???????????????? | | ##?????# #########???????????????? | | ##?????# #???????????????????????? | | #??????# #???????????????????????? | | ##??????## ##???????????????????????? | | ###????????####????????????????????????? | | ???????????????????????????????????????? | | ???????????????????????????????????????? | | | | | | | | | | | | | | | | | +----------------------------------------------------+ Best States ------------- Heat Dissipation 35 Energy Generation 23 Energy Capacity 460 Matter Stores 400 Matter Capacity 400 Sight Range 16 Robot Scan Range 10 Terrain Scan Density 10 Armor Coverage 225 Resistance: KI 35 Resistance: TH 35 Resistance: EX 35 Resistance: EM 35 Resistance: I 35 Resistance: S 35 Resistance: P 35 Evasion (%) 50 Targeting Accuracy 10 Offensive Hacking 20 Item Schematics ----------------- None Robot Schematics ------------------ None Fabricated ------------ Nothing Alien Tech Used ----------------- None Achievements -------------- None Challenges ------------ None Game ------ Seed ThiefFluxAutogun Manual? 0 Play Time 00:30:47 Cumulative 5.1 hours Start 2021.11.07 @ 21:17:02 End 2021.11.07 @ 21:46:04 Sessions 1 Manual Loads 0 Difficulty Explorer Special Mode None Game No. 4 Rogue 0 Adventurer 0 Explorer 4 Win Type - Total 0 Types 0/0/0/0/0/0/0/0/0 Lore% 2 Gallery% 9 Achievement% 8 Wizard Run 0 Options --------- ASCII 0 Keyboard 0 Movement Mouse Keybinds 0 Fullscreen 1 Font 18/Terminus Map View 76x50 Tactical HUD 1 Map Filters NONE Filters NONE Steam 0 RUN: e5fc8bd9-160b-466a-8a20-1aa35ffbcf90